Cogmind - Beta 17 @@@ ROGUE MODE // 2026.08.16 @ 10:25:29 Player: Floof Enjoyer Result: Destroyed by S-10 Pest with Light Assault Rifle Performance ------------- Evolutions (1) 500 Regions Visited (6) 1200 Robots Destroyed (40) 200 Value Destroyed (954) 954 Prototype IDs (6) 120 Alien Tech Used (0) 0 Bonus (300) 300 TOTAL SCORE: 3274 Bonus ------- Aligned with FarCom 300 Cogmind --------- Core Integrity 0/400 Matter 225/300 Energy 5/125 System Corruption 0% Temperature Cool (94) Movement Flying (31) Location -8/Mines Parts ------- > --- POWER (1) -------- Light Ion Engine > --- PROPULSION (4) --- Flight Unit Flight Unit Flight Unit Flight Unit > --- UTILITY (2) ------ Improved Terrain Scanner Seismic Detector > --- WEAPON (2) ------- Advanced Beam Cannon Longsword +1 > --- INVENTORY (5) ---- Light Ion Engine Flight Unit Flight Unit Sensor Drone Bay (20/20) Light Assault Rifle Peak State ------------ > --- POWER ------------ Ion Engine > --- PROPULSION ------- Aluminum Leg Improved Flight Unit > --- UTILITY ---------- Sensor Array Chronowheel > --- WEAPON ----------- Particle Gun > --- INVENTORY -------- Improved Heat Sink Structural Scanner Sensor Drone Bay Advanced Beam Cannon Mining Claw [Rating: 22] Favorites ----------- Power Ion Engine Engine Ion Engine Power Core Light Nuclear Core Propulsion Flight Unit Treads Light Treads Leg Aluminum Leg Wheel Wheel Flight Unit Flight Unit Utility Utility Shielding Device Improved Heat Sink Storage Superbattery Protection Utility Shielding Weapon Small Laser Energy Gun Small Laser Energy Cannon Advanced Beam Cannon Slashing Weapon Mining Claw Build | -11 -10 -10 -9 -9 -9 -8 ------- Run | Yrd Mat Min Mat Min Exi Min Slots Evolved 2 | . . . 2 . . . Power . | . . . . . . . Propulsion 2 | . . . 2 . . . Utility . | . . . . . . . Weapon . | . . . . . . . Parts Attached 58 | 5 16 5 13 4 5 10 Power 7 | 1 2 1 1 1 . 1 Engine 6 | 1 1 1 1 1 . 1 Core 1 | . 1 . . . . . Reactor . | . . . . . . . Propulsion 25 | 2 5 2 8 1 . 7 Treads 3 | . . . 3 . . . Leg 2 | . 1 . . 1 . . Wheel 2 | 2 . . . . . . Hover . | . . . . . . . Flight 18 | . 4 2 5 . . 7 Utility 14 | . 5 1 . 2 4 2 Device 11 | . 4 . . 2 3 2 Storage 1 | . . . . . 1 . Processor . | . . . . . . . Hackware . | . . . . . . . Protection 2 | . 1 1 . . . . Artifact . | . . . . . . . Weapon 12 | 2 4 1 4 . 1 . Energy Gun 9 | 2 3 1 3 . . . Energy Cannon 1 | . . . 1 . . . Ballistic Gun . | . . . . . . . Ballistic Cannon . | . . . . . . . Launcher . | . . . . . . . Special Weapon . | . . . . . . . Impact Weapon . | . . . . . . . Slashing Weapon 2 | . 1 . . . 1 . Piercing Weapon . | . . . . . . . Special Melee Weapon . | . . . . . . . Unidentified Prototypes 6 | . . . 2 1 3 . Parts Lost 21 | . 3 1 4 5 . 8 Power 3 | . . 1 . 1 . 1 Propulsion 12 | . 2 . 4 3 . 3 Utility 3 | . . . . . . 3 Weapon 3 | . 1 . . 1 . 1 Highest Loss Streak 8 | . 3 1 2 5 . 8 To Critical Strikes 1 | . . . . . . 1 Average Backups 3 | 2 4 4 4 3 3 3 Power . | . . . . . . . Propulsion . | . . 1 . . . . Utility 1 | . . . . 1 2 1 Weapon 1 | 1 2 3 3 1 1 . Tool/Special . | . . . . . . . Unused Backups 6 | . 1 1 1 . . 3 Power 2 | . 1 . . . . 1 Propulsion 1 | . . . . . . 1 Utility . | . . . . . . . Weapon 3 | . . 1 1 . . 1 Tool/Special . | . . . . . . . Average Slot Usage (%) 84 | . 90 95 98 79 67 66 Engine 11 | . 12 11 11 10 11 8 Treads 2 | . . . 8 4 . . Leg 3 | . . . . 7 11 4 Wheel 4 | . 16 . . . . . Flight 17 | . 8 28 34 12 11 14 Device 12 | . 11 14 10 11 16 15 Protection 8 | . 10 10 11 11 . . Energy Gun 18 | . 27 28 22 12 11 4 Slashing Weapon 4 | . . . . 9 6 11 Peak Build Rating 22 | 5 11 10 18 17 22 22 Average Rating 12 | 2 6 8 15 15 14 16 On Entrance 10 | . 5 10 9 17 17 18 Avg Prop Armor Cover (%) 2 | . . . 5 1 2 2 Naked Turns . | . . . . . . . Heaviest Build 25 | 7 11 7 18 25 13 13 Greatest Support 40 | 20 20 8 40 40 10 16 Greatest Overweight (x) 5 | . 3 . 1 5 1 3 Average Overweight (x) . | . . . . 1 . . Largest Inventory Capacity 5 | 5 5 5 5 5 5 5 Average Capacity 5 | 5 5 5 5 5 5 5 Most Carried 5 | 5 5 5 5 5 5 5 Average Carried 3 | 2 4 4 4 3 3 2 Final Capacity 5 | 5 5 5 5 5 5 5 Final Carried 5 | 2 4 5 3 4 3 5 Class Distribution -------------------- 66% | Mutant 15% | Scavenger-Mutant 6% | Scavenger-Sprinter 4% | Sprinter 4% | Assassin Dominant Class ---------------- Mutant | -10/Materials Scavenger-Mutant | -10/Mines Mutant | -9/Materials Mutant | -9/Mines Mutant | -9/Exiles Assassin | -8/Mines Resources | -11 -10 -10 -9 -9 -9 -8 ----------- Run | Yrd Mat Min Mat Min Exi Min Matter Collected 815 | 172 238 50 188 92 . 75 Remotely . | . . . . . . . Salvage Created 1402 | . 460 123 585 125 . 109 Parts 100 | . 34 9 39 3 . 15 Haulers Intercepted 3 | . 2 . 1 . . . Recyclers Shooed 2 | . . . 2 . . . Parts Field Recycled . | . . . . . . . Retrieved Matter . | . . . . . . . Parts Self-Destructed . | . . . . . . . Prevented . | . . . . . . . Parts Restored . | . . . . . . . Kills | -11 -10 -10 -9 -9 -9 -8 ------- Run | Yrd Mat Min Mat Min Exi Min Combat Hostiles Destroyed 31 | . 10 3 9 3 . 6 Melee 3 | . . . . . . 3 Guns 25 | . 10 3 9 3 . . Cannons 3 | . . . . . . 3 Classes Destroyed 8 | . 4 1 2 . . 1 Builder 1 | . . . 1 . . . Tunneler 1 | . . . . . . 1 Hauler 3 | . 2 . 1 . . . Recycler 1 | . . 1 . . . . Watcher 3 | . 1 . 2 . . . Swarmer 12 | . 3 3 . . . 6 Grunt 12 | . 7 . 2 3 . . Sentry 7 | . . . 7 . . . Best Kill Streak 7 | . 4 3 4 1 . 7 Combat Bots Only 6 | . 4 3 3 1 . 6 Max Kills in Single Turn 1 | . 1 1 1 1 . 1 Gunslinging . | . . . . . . . Exploded . | . . . . . . . Melee 1 | . . . . . . 1 Uniques/NPCs Destroyed . | . . . . . . . Combat | -11 -10 -10 -9 -9 -9 -8 -------- Run | Yrd Mat Min Mat Min Exi Min Hostile Shots Fired 293 | . 59 23 43 50 . 118 Missed 85 | . 15 7 16 9 . 38 Hits 208 | . 44 16 27 41 . 80 Projectile 208 | . 44 16 27 41 . 80 Critical Strikes 6 | . 1 . 2 1 . 2 Actively Blocked 1 | . 1 . . . . . Damage Taken 2256 | . 512 131 378 578 . 657 Core 567 | . 148 19 39 115 . 246 Absorbed by Shields . | . . . . . . . Redirected to Shielding 52 | . 48 . 4 . . . Core Remaining (%) 66 | 100 . 33 . . . . Volleys Fired 120 | . 39 12 36 18 . 15 Largest 2 | . 2 2 2 2 . 1 Hottest 121 | . 80 80 121 121 . 68 Shots Fired 210 | . 76 24 72 23 . 15 Gun 197 | . 76 24 72 23 . 2 Cannon 13 | . . . . . . 13 Launcher . | . . . . . . . Special . | . . . . . . . Kinetic . | . . . . . . . Thermal 210 | . 76 24 72 23 . 15 Explosive . | . . . . . . . Electromagnetic . | . . . . . . . Robot Hit Streak 19 | . 15 6 19 5 . 3 Robot Miss Streak 5 | . 4 2 3 1 . 5 Penetration Max . | . . . . . . . Secondary Targets 5 | . 2 2 1 . . . Max Gunslinging Chain 1 | . 1 1 1 . . . Shots Hit Robots 149 | . 53 11 52 22 . 11 Core Hits 63 | . 23 5 24 5 . 6 Critical Kills . | . . . . . . . Critical Parts Destroyed . | . . . . . . . Critical Strikes 2 | . . . . 1 . 1 Burn 1 | . . . . 1 . . Sever 1 | . . . . . . 1 Melee Attacks 12 | . . . . 8 . 4 Impact . | . . . . . . . Slashing 12 | . . . . 8 . 4 Piercing . | . . . . . . . Sneak Attacks . | . . . . . . . Combat Hostiles . | . . . . . . . Follow-up Attacks . | . . . . . . . Damage Inflicted 2101 | . 619 134 630 374 . 344 Guns 1676 | . 619 134 630 260 . 33 Cannons 124 | . . . . . . 124 Explosions . | . . . . . . . Melee 301 | . . . . 114 . 187 Ramming . | . . . . . . . Kinetic . | . . . . . . . Thermal 1800 | . 619 134 630 260 . 157 Explosive . | . . . . . . . Electromagnetic . | . . . . . . . Impact . | . . . . . . . Slashing 301 | . . . . 114 . 187 Piercing . | . . . . . . . Highest Corruption . | . . . . . . . Average Corruption . | . . . . . . . Corruption Purged . | . . . . . . . Corruption Blocked . | . . . . . . . Overload Shots . | . . . . . . . Overflow Damage 10 | . . . . . . 10 Projectiles 2 | . . . . . . 2 Explosions . | . . . . . . . Melee 8 | . . . . . . 8 Knockbacks . | . . . . . . . Impact . | . . . . . . . Kinetic . | . . . . . . . Secondary . | . . . . . . . Self-Inflicted Damage . | . . . . . . . Shots . | . . . . . . . Rammed . | . . . . . . . Targets Rammed . | . . . . . . . Kicked . | . . . . . . . Crushed . | . . . . . . . Highest Temperature 254 | . 180 22 254 204 . 94 Average Temperature 70 | . 56 14 90 79 . 35 Received Heat Transfer 729 | . 237 6 141 345 . . Effects 3 | . . . 3 . . . Interference 3 | . . . 3 . . . Siege Activations . | . . . . . . . Martial Activations . | . . . . . . . Shielding Activations . | . . . . . . . Robots Disrupted . | . . . . . . . Combat Hostiles . | . . . . . . . Robots Corrupted . | . . . . . . . Combat Hostiles . | . . . . . . . Parts Fried . | . . . . . . . Impact Corruptions . | . . . . . . . Robots Melted . | . . . . . . . Combat Hostiles . | . . . . . . . Parts Melted 9 | . 3 . 4 2 . . Heat Transferred 4240 | . 1425 300 1516 703 . 296 Parts Sabotaged . | . . . . . . . Parts Stolen . | . . . . . . . Parts Stripped . | . . . . . . . Power Chain Reactions . | . . . . . . . Alert | -11 -10 -10 -9 -9 -9 -8 ------- Run | Yrd Mat Min Mat Min Exi Min Maximum Alert Level . | . . . . . . . Low Security (%) 100 | 100 100 100 100 100 . 100 Level 1 . | . . . . . . . Level 2 . | . . . . . . . Level 3 . | . . . . . . . Level 4 . | . . . . . . . Level 5 . | . . . . . . . High Security . | . . . . . . . Max Security . | . . . . . . . Peak Influence 199 | . 126 105 199 67 . 65 Initial 47 | . . 45 31 47 . . Average 51 | . 39 80 105 15 . 25 Influence Increases 1029 | . 301 105 348 100 . 175 Destroy 0b10 Robot/C 620 | . 200 60 180 60 . 120 Destroy 0b10 Robot/NC 45 | . 15 5 20 . . 5 Destroy Leader 182 | . 56 10 86 10 . 20 Successful Hack 2 | . . . 2 . . . Partial Spotted 75 | . 15 . 60 . . . Lose Combat Pursuer 105 | . 15 30 . 30 . 30 Influence Decreases 979 | . 185 141 306 222 . 125 Entered New Map 195 | . . 71 49 75 . . Time Decay 589 | . 155 60 217 97 . 60 Lost Part 195 | . 30 10 40 50 . 65 Squads Dispatched 3 | . 2 . 1 . . . Investigation 1 | . 1 . . . . . Extermination . | . . . . . . . Reinforcement 2 | . 1 . 1 . . . Assault . | . . . . . . . Garrison . | . . . . . . . Intercept . | . . . . . . . Searches Triggered . | . . . . . . . Construction Impeded . | . . . . . . . Haulers Reinforced . | . . . . . . . Active Scanning Responses . | . . . . . . . Cargo Convoy Interrupts . | . . . . . . . Stealth | -11 -10 -10 -9 -9 -9 -8 --------- Run | Yrd Mat Min Mat Min Exi Min Distress Signals 2 | . 1 . 1 . . . Communications Jammed . | . . . . . . . Distress Signals . | . . . . . . . Times Spotted 47 | . 16 5 11 5 . 10 Peak Tracking Total 7 | . 5 3 3 3 . 7 Tactical Retreats 5 | . 1 1 . 1 . 2 Traps | -11 -10 -10 -9 -9 -9 -8 ------- Run | Yrd Mat Min Mat Min Exi Min Traps Triggered 2 | . 1 . 1 . . . Indirectly . | . . . . . . . Trap Hack Attempts . | . . . . . . . Triggered . | . . . . . . . Disarmed . | . . . . . . . Reprogrammed . | . . . . . . . Reused . | . . . . . . . Traps Extracted . | . . . . . . . Installed . | . . . . . . . Triggered . | . . . . . . . Machines | -11 -10 -10 -9 -9 -9 -8 ---------- Run | Yrd Mat Min Mat Min Exi Min Machines Disabled . | . . . . . . . Max in Single Turn . | . . . . . . . Machines Repaired . | . . . . . . . Machines Dismantled . | . . . . . . . Machines Sabotaged . | . . . . . . . Overloaded Fab Kills . | . . . . . . . Hacking | -11 -10 -10 -9 -9 -9 -8 --------- Run | Yrd Mat Min Mat Min Exi Min Machines Accessed 2 | . . . 1 1 . . Terminals . | . . . . . . . Fabricators . | . . . . . . . Repair Stations . | . . . . . . . Recycling Units . | . . . . . . . Scanalyzers 1 | . . . 1 . . . Garrison Access . | . . . . . . . Total Hacks 3 | . . . 2 1 . . Successful 2 | . . . 1 1 . . Failed . | . . . . . . . Catastrophic . | . . . . . . . Database Lockouts 1 | . . . 1 . . . Manual 1 | . . . . . 1 . Terminals . | . . . . . . . Fabricators . | . . . . . . . Repair Stations . | . . . . . . . Recycling Units . | . . . . . . . Scanalyzers 2 | . . . 2 . . . Garrison Access . | . . . . . . . Terminal Hacks 1 | . . . . 1 . . Open Door 1 | . . . . 1 . . Fabricator Hacks . | . . . . . . . Repair Station Hacks . | . . . . . . . Recycling Unit Hacks . | . . . . . . . Scanalyzer 1 | . . . 1 . . . Retrieve Study 1 | . . . 1 . . . Garrison Access Hacks . | . . . . . . . Unauthorized Hacks . | . . . . . . . Terminals . | . . . . . . . Fabricators . | . . . . . . . Repair Stations . | . . . . . . . Recycling Units . | . . . . . . . Scanalyzers . | . . . . . . . Garrison Access . | . . . . . . . Data Cores Recovered . | . . . . . . . Used . | . . . . . . . Hacking Detections . | . . . . . . . Full Trace Events . | . . . . . . . Feedback Events . | . . . . . . . Feedback Blocked . | . . . . . . . Robot Schematics Acquired . | . . . . . . . Robots Built . | . . . . . . . Authchips . | . . . . . . . Time . | . . . . . . . Total Robot Build Rating . | . . . . . . . Part Schematics Acquired . | . . . . . . . Parts Built . | . . . . . . . Authchips . | . . . . . . . Time . | . . . . . . . Total Part Build Rating . | . . . . . . . Part Studies Acquired 1 | . . . 1 . . . Parts Repaired . | . . . . . . . Time . | . . . . . . . Parts Recycled . | . . . . . . . Recycled Matter . | . . . . . . . Retrieved Matter . | . . . . . . . Retrieved Components . | . . . . . . . Parts Scanalyzed . | . . . . . . . Part Schematics Acquired . | . . . . . . . Parts Damaged . | . . . . . . . Bothacking | -11 -10 -10 -9 -9 -9 -8 ------------ Run | Yrd Mat Min Mat Min Exi Min Used RIF Installer . | . . . . . . . Robots Hacked . | . . . . . . . Non-combat . | . . . . . . . Combat . | . . . . . . . Robot Hacks Applied . | . . . . . . . Relay Couplers Released . | . . . . . . . Fabnet Peak Effective % . | . . . . . . . Robots Rewired . | . . . . . . . Allies Hacked . | . . . . . . . Hacks Repelled . | . . . . . . . Allies | -11 -10 -10 -9 -9 -9 -8 -------- Run | Yrd Mat Min Mat Min Exi Min Total Allies . | . . . . . . . Largest Group . | . . . . . . . Highest-Rated Group . | . . . . . . . Highest-Rated Ally . | . . . . . . . Total Orders 2 | . . . . 2 . . EXPLORE 1 | . . . . 1 . . RETURN 1 | . . . . 1 . . Ally Attacks . | . . . . . . . Total Damage . | . . . . . . . Kills . | . . . . . . . Allies Corrupted . | . . . . . . . Allies Melted . | . . . . . . . Intel | -11 -10 -10 -9 -9 -9 -8 ------- Run | Yrd Mat Min Mat Min Exi Min Active Infowar (turns) 730 | . 269 . . . 336 125 Sensors 428 | . . . . . 336 92 Terrain 74 | . 41 . . . . 33 Structural 273 | . . . . . 185 88 Seismic 249 | . 228 . . . . 21 Robot Analysis Total . | . . . . . . . Derelict Logs Recovered 3 | . . 1 . 2 . . Drone Launches 20 | . . . . 20 . . Drone Recoveries 20 | . . . . 20 . . Exploration | -11 -10 -10 -9 -9 -9 -8 ------------- Run | Yrd Mat Min Mat Min Exi Min Turns Passed 2120 | 34 519 138 462 445 337 185 Spaces Moved 1713 | 34 497 245 449 151 217 120 Core 41 | 12 7 . . 5 . 17 Treads 147 | . . . 115 32 . . Legs 371 | . 2 . . 114 217 38 Wheels 332 | 22 310 . . . . . Hover . | . . . . . . . Flight 822 | . 178 245 334 . . 65 Fastest Speed 27 | 50 37 37 27 150 120 31 Average Speed 88 | 69 66 37 62 224 151 101 Slowest Speed 300 | 80 200 37 160 300 190 200 Overloaded Moves . | . . . . . . . Propulsion Burnouts . | . . . . . . . Robots Hopped 13 | . 1 9 3 . . . Potential Cave-ins . | . . . . . . . Cave-ins Triggered . | . . . . . . . Exploration Rate (%) 51 | 4 78 62 36 98 60 23 Regions Visited 6 Branch Regions 4 Pre-discovered Areas 1 | . . . . 1 . . Known Exits Taken . | . . . . . . . Unknown Exits Taken 6 | 1 1 1 1 1 1 . Scrap Searched 2 | . . 1 . 1 . . Spaces Dug . | . . . . . . . Terrain Destroyed . | . . . . . . . Melee . | . . . . . . . Projectile . | . . . . . . . AOE . | . . . . . . . Terrain Rammed . | . . . . . . . Walls Destroyed . | . . . . . . . Machines Disabled . | . . . . . . . Actions | -11 -10 -10 -9 -9 -9 -8 --------- Run | Yrd Mat Min Mat Min Exi Min Total 2075 | 43 609 259 553 219 227 165 Wait 97 | . 39 . 28 30 . . Move 1682 | 33 494 227 442 150 216 120 Hop 12 | . 1 8 3 . . . Pick Up 44 | 5 9 4 10 5 . 11 Fast Attach 12 | 2 3 . 3 . 3 1 Attach 32 | 3 6 2 5 4 2 10 Detach 4 | . . . . 1 2 1 Swap 32 | . 8 3 17 2 . 2 Drop 28 | . 10 3 9 1 4 1 Fire 120 | . 39 12 36 18 . 15 Melee 12 | . . . . 8 . 4 Ram . | . . . . . . . Kick . | . . . . . . . Crush . | . . . . . . . Escape Stasis . | . . . . . . . Rewire . | . . . . . . . Trap . | . . . . . . . Miscellaneous . | . . . . . . . Route ------- -11/Scrapyard -10/Materials (discovered 4 exits: *Mat x2 / [*Min] / [*Sub]) -10/Mines -9/Materials -9/Mines (discovered 4 exits: *Mat x2 / *Exi / *Zio) -9/Exiles -8/Mines History --------- Turn | Location | Event 22 | -11/Scrapyard | Discovered new exit (range 15) 35 | -11/Scrapyard | Entered Materials 185 | -10/Materials | Discovered new exit (range 5) 263 | -10/Materials | Discovered new exit (range 16) 310 | -10/Materials | Build established: Mutant 376 | -10/Materials | Discovered new exit (range 10) 466 | -10/Materials | Core integrity fell below 50% 510 | -10/Materials | Lost 3 parts (2n1w) 544 | -10/Materials | Discovered new exit (range 12) 554 | -10/Materials | Entered Mines 637 | -10/Mines | Learned Materials emergency access door positions 665 | -10/Mines | YI-UF0 nonchalantly dropped a Grenade Launcher on the ground 689 | -10/Mines | Discovered new exit (range 7) 692 | -10/Mines | Entered Materials 692 | -9/Materials | Evolved 2 slots: Propulsion x2 868 | -9/Materials | Central database locked down 1113 | -9/Materials | Discovered new exit (range 13) 1154 | -9/Materials | Entered Mines 1297 | -9/Mines | Lost 5 parts (1p3n1w) 1324 | -9/Mines | Found the Drone Emporium 1337 | -9/Mines | Found Prototype Device 1338 | -9/Mines | Identified Sensor Drone Bay 1357 | -9/Mines | A Derelict revealed a hidden shortcut to a safe place 1375 | -9/Mines | Discovered new exit (range 48) 1406 | -9/Mines | Learned location of Zion (-7) 1409 | -9/Mines | Discovered new exit (range 60) 1411 | -9/Mines | Identified exit to Materials 1424 | -9/Mines | Identified exit to Zion 1539 | -9/Mines | Learned 2 Materials zone layouts 1589 | -9/Mines | Deemed a non-threat by the Exiles lab entrance 1589 | -9/Mines | Discovered new exit (range 5) 1599 | -9/Mines | Entered Exiles 1634 | -9/Exiles | Met 8R-AWN 1651 | -9/Exiles | Met EX-HEX 1684 | -9/Exiles | Met EX-BIN 1699 | -9/Exiles | Aligned with FarCom system 1700 | -9/Exiles | Given EX-Vault access code 1728 | -9/Exiles | Opened EX-Vault 1734 | -9/Exiles | Found Prototype Device 1734 | -9/Exiles | Identified Chronowheel 1734 | -9/Exiles | Activated Chronowheel 1744 | -9/Exiles | Found Prototype Storage 1744 | -9/Exiles | Identified Superbattery 1749 | -9/Exiles | Found Prototype Slashing Weapon 1749 | -9/Exiles | Identified Longsword +1 1792 | -9/Exiles | Warned to stay clear of 0b10 Research branches 1847 | -9/Exiles | Met EX-DEC 1915 | -9/Exiles | Discovered new exit (range 11) 1936 | -9/Exiles | Left Exiles lab with Longsword +1 1936 | -9/Exiles | Entered Mines 2013 | -8/Mines | Core integrity fell below 50% 2032 | -8/Mines | Core integrity fell below 20% 2085 | -8/Mines | Lost 8 parts (1p3n3u1w) 2121 | -8/Mines | Destroyed by S-10 Pest with Light Assault Rifle Last Messages --------------- 02063_ Acquired Lgt. Ion Engine. 02066_ Acquired Lgt. Assault Rifle. 02071_ Acquired Flight Unit. 02072_ K-01 Serf collects debris. 02076_ Acquired Flight Unit. 02079_ K-01 Serf collects debris. 02082_ Acquired Flight Unit. 02082_ K-01 Serf collects debris. 02085_ Acquired Flight Unit. 02086_ K-01 Serf collects debris. 02087_ Acquired Imp. Terrain Scanner. 02089_ K-01 Serf collects debris. 02091_ Acquired Flight Unit. 02093_ K-01 Serf collects debris. 02096_ Dropped Flight Unit. 02096_ K-01 Serf collects debris. 02099_ Acquired 15 matter. 02099_ K-01 Serf collects debris. 02100_ Acquired Seismic Detector. 02103_ K-01 Serf collects debris. Map ----- +----------------------------------------------------+ | ???????????????????????????### [ %########??????? | | ??????????????? ########## [=########?????#? | | ???????????????? ###?#??????????? | | ???????????????? #####????????????? | | ??????????????? #### ####?????????????? | | ???????????????###??##### %##??#????????????? | | ???????????????###?????### ###?????????????? | | ???????????????????????### #?????????????? | | ????????????????????????## ## #????????????? | | ???????????????????????## #### ##????????????? | | ??????????????????????## ########?????????????? | | ??????????????????##### ######??????????????? | | ??????????????????# #??????????????????? | | ??????????????????# #??????????????????? | | ??????????????????# ### ##??????????????????? | | ???????????????#??# #?# ##???????????????????? | | ??????????????????# #?##s ##????????????????????? | | ??????????????????# #??# ##????????????????????? | | ??????????????????# #??# ##??#??#?????????????? | | ??????????????????# #?## #???????????????????? | | ??????????????????# #?# #???????????????????? | | ??????????????????# #?# ##???????????????????? | | ?????????#????????# #?## ###????????????????????? | | ??????????????????# #??## #??????????????????????? | | ?????????????????? #???#s#??????????????????????? | | ??????????????????# #???#@#??????????????????????? | | ??????????????????# #???# #??????????????????????? | | ??????????????????# #???#s#??????????????????????? | | ??????????????????? ????# #??????????????????????? | | ??????????????????? ???? ????????????#?????????? | | ??????????????????? ???? ?? ???????????????????? | | ??????????????????? ????# ??????????????????????? | | ???????????????????#????# ??????????????????????? | | ????????????????????????# ??????????????????????? | | ????????????????????????? ??????????????????????? | | ????????????????????????? #?????????????????????? | | ????????????????????????? #?????????????????????? | | ????????????????????????? #?????????????????????? | | ????????????????????????? ??????????????????????? | | ????????????????????????? ??????????????????????? | | ?????????????????????????t ??????????????????????? | | ?????????????????????????????????????????????????? | | ?????????????????????????????????????????????????? | | ?????????????????????????????????????????????????? | | ?????????????????????????????????????????????????? | | ?????????????????????????????????????????????????? | | ?????????????????????????????????????????????????? | | ?????????????????????????????????????????????????? | | ?????????????????????????????????????????????????? | | ?????????????????????????????????????????????????? | +----------------------------------------------------+ Best States ------------- Heat Dissipation 42 Energy Generation 14 Energy Capacity 265 Matter Stores 300 Matter Capacity 300 Sight Range 16 Robot Scan Range 14 Terrain Scan Range 16 Terrain Scan Density 10 Utility Shielding 33 Weapon Shielding 33 Evasion (%) 64 Recoil Reduction 2 Item Schematics ----------------- None Robot Schematics ------------------ None Fabricated ------------ Nothing Repaired ---------- Nothing Studied --------- VTOL Module | -9/Materials | Hacked Alien Tech Used ----------------- None Achievements -------------- None Challenges ------------ None Game ------ Seed PhaseShockClaws Manual? 0 Play Time 00:20:33 Cumulative 48.1 hours Start 2026.08.16 @ 10:06:53 End 2026.08.16 @ 10:25:29 Sessions 1 Manual Loads 0 Difficulty Rogue Special Mode None Game No. 138 Rogue 138 Adventurer 0 Explorer 0 Win Type - Total 0 Types 0/0/0/0/0/0/0/0/0/0 Lore% 22 Gallery% 34 Achievement% 21 Wizard Run 0 Options --------- Layout 1 ASCII 0 Keyboard 0 Movement Mouse Keybinds 0 Fullscreen 1 Font 24/Smallcaps Map View 50x35 Zoom Use 0% Tactical HUD 1 Map Filters NONE Filters NONE Steam 1 RUN: 6b99c597-17d4-4ead-8063-55e45295616e